bitfinex-derivatives/quotes_ETHF0:USTF0_20240829
["timestamp","ask_amount","ask_price","bid_price","bid_amount"]
[1724928903682,0.39349,2540.8,2540.4,1.42]
[1724928903881,0.39349,2540.7,2540.6,0.39349]
[1724928904177,4.9001949,2540.7,2540.6,0.39349]
[1724928904376,0.39349,2540.7,2540.6,0.39349]
[1724928904582,4.81040358,2540.7,2540.6,0.39349]
[1724928905280,0.39353,2540.5,2540.4,0.39353]
[1724928905478,0.39354,2540.4,2540.3,0.39355]
[1724928906081,0.39355,2540.3,2540.2,4.58455]
[1724928906283,0.77555,2540.3,2540.2,4.58455]
[1724928907183,0.382,2540.3,2540.2,4.58455]
[1724928908089,0.77555,2540.3,2540.2,4.58455]
[1724928909486,0.39354,2540.4,2540.3,0.39355]
[1724928909887,5.9827098,2540.5,2540.2,4.191]
[1724928909888,4.5627098,2540.5,2540.2,4.191]
[1724928910183,0.39354,2540.4,2540.3,0.39355]
[1724928910986,0.39354,2540.4,2540.2,0.39356]
[1724928911188,4.5627098,2540.5,2540.1,1.81358]
[1724928911487,0.39356,2540.3,2540.2,0.39357]
[1724928911680,6.9665298,2540.5,2540.1,0.39357]
[1724928911891,4.696155,2540.3,2540.1,0.39357]
[1724928912087,0.39356,2540.3,2540.1,0.39357]
[1724928912385,4.17363124,2540.2,2540.1,0.39357]
[1724928912979,4.56403124,2540.2,2540.1,0.39357]
[1724928913890,4.95760124,2540.2,2540.1,0.39357]
[1724928914790,0.39358,2540.1,2539.8,1.02918953]
[1724928914991,0.39358,2540.1,2539.9,0.732]
[1724928915187,0.39358,2540.1,2540.0,0.3936]
[1724928915586,4.78856114,2540.1,2540.0,0.3936]
[1724928916183,4.39498114,2540.1,2540.0,0.3936]
[1724928917891,4.78856114,2540.1,2540.0,0.3936]
[1724928918087,4.39498114,2540.1,2540.0,0.3936]
[1724928918595,4.78856114,2540.1,2540.0,0.3936]
[1724928920086,4.39498114,2540.1,2540.0,0.3936]
[1724928920282,4.39498114,2540.1,2540.0,0.7469]
[1724928922987,4.78856114,2540.1,2540.0,0.7469]
[1724928923295,4.39498114,2540.1,2540.0,0.7469]
[1724928925584,4.78856114,2540.1,2540.0,0.7469]
[1724928925798,4.39498114,2540.1,2540.0,0.3936]
[1724928925983,6.12506999,2540.2,2540.1,0.39358]
[1724928926190,0.39358,2540.1,2540.0,0.75169]
[1724928926591,4.95668514,2540.1,2540.0,0.75169]
[1724928927494,11.70770514,2540.1,2539.7,1.03509121]
[1724928927696,11.70770514,2540.1,2539.7,0.00590168]
[1724928927697,0.39363,2539.8,2539.7,0.00590168]
[1724928928003,6.27435836,2539.8,2539.7,0.00590168]
[1724928929600,4.46072836,2539.8,2539.7,0.00590168]
[1724928929899,0.3597,2540.0,2539.9,0.39361]
[1724928930304,4.67525054,2540.0,2539.9,0.39361]
[1724928934598,4.31555054,2540.0,2539.9,0.39361]
[1724928935005,3.2078,2540.4,2540.3,0.39355]
[1724928935718,3.2078,2540.4,2540.3,1.49085]
[1724928936407,4.89020937,2540.9,2540.3,1.0973]
[1724928936616,4.89020937,2540.9,2540.6,1.42]
[1724928936907,4.2066534,2540.8,2540.7,0.76148]
[1724928937107,4.2066534,2540.8,2540.7,1.49078]
[1724928938805,4.2066534,2540.8,2540.6,0.39349]
[1724928939110,0.3725,2540.7,2540.6,0.39349]
[1724928939307,1.7925,2540.7,2540.6,0.3935]
[1724928939511,6.24498412,2540.7,2540.6,0.3935]
[1724928940200,5.87248412,2540.7,2540.6,0.3935]
[1724928942216,4.45248412,2540.7,2540.6,0.3935]
[1724928943908,7.07617937,2540.9,2540.7,0.39348]
[1724928944210,7.07617937,2540.9,2540.8,0.7673]
[1724928944614,11.59908073,2540.9,2540.8,0.7673]
[1724928945917,11.20561073,2540.9,2540.8,1.16077]
[1724928946119,11.59907073,2540.9,2540.8,1.16077]
[1724928946321,11.20561073,2540.9,2540.8,1.16077]
[1724928948316,9.78561073,2540.9,2540.8,1.16077]
[1724928948517,0.00590168,2541.1,2541.0,0.39344]
[1724928948718,0.00590168,2541.1,2541.0,1.81344]
[1724928948917,0.00590168,2541.1,2541.0,5.74864]
[1724928949511,0.00590168,2541.1,2541.0,12.73225]
[1724928951821,0.00590168,2541.1,2541.0,15.94005]
[1724928952010,0.00590168,2541.1,2541.0,12.73225]
[1724928952318,0.00590168,2541.1,2541.0,15.94005]
[1724928955027,0.00590168,2541.1,2541.0,9.94005]
[1724928957723,0.00590168,2541.1,2541.0,13.20205]
[1724928959314,0.00590168,2541.1,2541.0,14.18566]
[1724928959520,3.2078,2542.0,2541.9,0.3933]
[1724928962825,1.11030168,2542.2,2542.1,0.39327]
[1724928963227,5.64700429,2542.2,2542.1,0.39327]
[1724928963828,9.58060429,2542.2,2542.1,0.39327]
[1724928964426,5.64700429,2542.2,2542.1,0.39327]
[1724928965026,4.54260429,2542.2,2542.1,0.39327]
[1724928965225,4.195,2543.9,2542.1,0.39327]
[1724928965226,0.3752,2542.8,2542.7,0.39318]
[1724928965723,0.3752,2542.8,2542.7,1.81318]
[1724928966229,0.3752,2542.8,2542.7,0.39318]
[1724928967734,5.728,2542.8,2542.2,3.9433]
[1724928967933,1.81322,2542.5,2542.3,0.39324]
[1724928968122,0.39322,2542.5,2542.3,0.39324]
[1724928968326,4.66529018,2542.4,2542.3,0.39324]
[1724928970129,4.31039018,2542.4,2542.3,0.39324]
[1724928970429,4.64490776,2542.6,2542.5,0.39321]
[1724928970829,4.3115,2542.6,2542.5,0.39321]
[1724928971044,8.57770776,2542.6,2542.5,0.39321]
[1724928971941,3.2078,2542.7,2542.6,0.39319]
[1724928973731,3.60099,2542.7,2542.5,0.3932]
[1724928974038,3.60099,2542.7,2542.4,0.39322]
[1724928974039,0.76531,2542.6,2542.4,0.39322]
[1724928974228,0.3721,2542.6,2542.5,0.39321]
[1724928974539,4.89356947,2542.6,2542.5,0.39321]
[1724928974843,8.82636947,2542.6,2542.5,0.39321]
[1724928975038,4.89356947,2542.6,2542.5,0.39321]
[1724928975433,5.28675947,2542.6,2542.3,0.3847]
[1724928975633,0.3667,2542.5,2542.4,0.39323]
[1724928977428,4.71862939,2542.5,2542.4,0.39323]
[1724928979744,4.35192939,2542.5,2542.4,0.39323]
[1724928980846,4.35192939,2542.5,2542.4,0.76693]
[1724928981041,4.35192939,2542.5,2542.4,1.75]
[1724928981450,0.78036,2542.9,2542.8,0.39316]
[1724928981742,4.4207716,2542.8,2542.7,0.39317]
[1724928982148,4.32598,2542.8,2542.6,0.39318]
[1724928982338,0.3578,2542.7,2542.6,0.39318]
[1724928982738,4.78062757,2542.7,2542.6,0.39318]
[1724928984151,4.42282757,2542.7,2542.6,0.39318]
[1724928984538,0.78036,2542.9,2542.8,0.39316]
[1724928984738,4.71316,2542.9,2542.8,0.39316]
[1724928984939,8.83312107,2542.9,2542.8,0.39316]
[1724928985145,4.90032107,2542.9,2542.8,0.39316]
[1724928986445,8.83312107,2542.9,2542.8,0.39316]
[1724928987046,8.43996107,2542.9,2542.8,0.39316]
[1724928987346,8.83311107,2542.9,2542.8,0.39316]
[1724928987546,0.39317,2542.8,2542.7,0.39318]
[1724928987845,0.39318,2542.7,2542.6,0.39319]
[1724928988247,4.78856308,2542.8,2542.6,0.39319]
[1724928988545,0.39318,2542.7,2542.6,0.39319]
[1724928988939,4.78855308,2542.8,2542.7,0.39318]
[1724928989132,4.39538308,2542.8,2542.7,0.39318]
[1724928989537,4.39538308,2542.8,2542.7,0.76768]
[1724928990341,4.78854308,2542.8,2542.7,0.39318]
[1724928990545,4.39538308,2542.8,2542.7,0.39318]
[1724929011461,4.39538308,2542.8,2542.7,1.81318]
[1724929012073,0.39903168,2543.0,2542.9,0.39315]
[1724929012357,3.93870168,2543.0,2542.9,1.81315]
[1724929012558,4.25466201,2543.0,2542.9,2.79603]
[1724929012764,0.00590168,2543.0,2542.9,7.71171]
[1724929012963,0.00590168,2543.0,2542.9,10.96571]
[1724929014057,0.00590168,2543.0,2542.9,51.76571]
[1724929017368,0.00590168,2543.0,2542.9,59.72166057]
[1724929017758,0.00590168,2543.0,2542.9,60.82956057]
[1724929017959,8.50308607,2543.8,2543.6,0.39303]
[1724929018166,0.3748,2543.7,2543.6,0.39303]
[1724929018369,8.98754582,2543.7,2543.6,0.39303]
[1724929019268,1.37571,2543.5,2543.4,0.00590168]
[1724929019457,6.00351,2543.5,2543.4,0.00590168]
[1724929019660,20.249457,2543.5,2543.4,0.00590168]
[1724929020066,18.829457,2543.5,2543.4,0.00590168]
[1724929023759,12.829457,2543.5,2543.4,0.00590168]
[1724929024890,11.846807,2543.5,2543.4,0.00590168]
[1724929026180,4.313947,2543.5,2543.4,0.77027168]
[1724929026381,8.245947,2543.5,2543.4,0.77027168]
[1724929026581,3.932,2543.5,2543.4,0.77027168]
[1724929026790,4.68912183,2543.6,2543.4,0.77027168]
[1724929026982,4.39057232,2543.5,2543.4,0.77027168]
[1724929028590,4.29490849,2543.6,2543.5,0.39304]
[1724929028788,4.29490849,2543.6,2543.5,1.16104]
[1724929028993,3.9312,2543.6,2543.5,1.16104]
[1724929029187,8.22610849,2543.6,2543.5,1.16104]
[1724929029384,8.22610849,2543.6,2543.4,0.37720168]
[1724929029385,0.39306,2543.5,2543.4,0.37720168]
[1724929029689,4.54793742,2543.5,2543.4,0.37720168]
[1724929029885,4.54793742,2543.5,2543.4,0.77027168]
[1724929030085,4.54793742,2543.5,2543.4,0.37720168]
[1724929030493,4.54793742,2543.5,2543.4,0.77027168]
[1724929030791,4.15487742,2543.5,2543.4,0.77027168]
[1724929031090,4.84214863,2543.6,2543.5,0.39306]
[1724929031287,4.44909863,2543.6,2543.5,0.39306]
[1724929031491,0.3748,2543.7,2543.5,0.39306]
[1724929031689,4.48107378,2543.6,2543.5,0.39306]
[1724929033190,4.87411378,2543.6,2543.5,0.39306]
[1724929034591,0.39306,2543.5,2543.4,0.77027168]
[1724929035094,5.53117738,2543.5,2543.4,0.00590168]
[1724929035495,4.54852738,2543.5,2543.4,0.00590168]
[1724929039383,8.48052738,2543.5,2543.4,0.00590168]
[1724929039585,0.39312,2543.1,2543.0,0.3792]
[1724929040001,4.76912382,2543.1,2543.0,0.77233]
[1724929040293,4.37600382,2543.1,2543.0,0.77233]
[1724929040495,4.37600382,2543.1,2543.0,2.19233]
[1724929040496,4.76912382,2543.1,2543.0,2.19233]
[1724929040797,0.39312,2543.1,2543.0,2.19233]
[1724929041098,4.91260731,2543.1,2542.9,5.77464]
[1724929041393,4.91260731,2543.1,2543.0,0.39313]
[1724929041591,4.51947731,2543.1,2543.0,0.39313]
[1724929041983,0.39312,2543.1,2543.0,0.39313]
[1724929042386,4.87767688,2543.1,2543.0,0.39313]
[1724929042788,0.39313,2543.0,2542.9,6.15384]
[1724929042989,4.87768688,2543.1,2543.0,0.39313]
[1724929043293,0.75013,2543.1,2543.0,0.39313]
[1724929043493,5.23481128,2543.1,2543.0,0.39313]
[1724929044299,5.23481128,2543.1,2542.9,2.94604]
[1724929044492,0.39313,2543.0,2542.9,2.94604]
[1724929044697,5.23480128,2543.1,2542.9,2.94604]
[1724929044892,4.36448388,2543.0,2542.9,2.94604]
[1724929045904,4.36448388,2543.0,2542.9,6.87884]
[1724929046099,0.39306,2543.5,2543.3,0.39307]
[1724929046295,0.39306,2543.5,2543.4,1.1432]
[1724929046693,4.60409343,2543.5,2543.4,1.53627]
[1724929046902,4.21103343,2543.5,2543.4,1.53627]
[1724929047104,4.60409343,2543.5,2543.4,1.53627]
[1724929047397,4.60409343,2543.5,2543.3,1.42]
[1724929047398,0.3931,2543.2,2543.1,1.81311]
[1724929047598,0.3931,2543.2,2543.1,0.39312]
[1724929047796,0.7444,2543.4,2543.0,2.5632]
[1724929047797,0.39312,2543.1,2543.0,2.5632]
[1724929048208,0.39312,2543.1,2543.0,6.4952]
[1724929048501,0.39312,2543.1,2543.0,0.7601]
[1724929048703,4.85723556,2543.1,2543.0,0.7601]
[1724929048900,0.39313,2543.0,2542.9,0.39315]
[1724929049205,0.39313,2543.1,2543.0,0.39313]
[1724929049505,4.51045911,2543.1,2543.0,0.39313]
[1724929049804,0.39313,2543.0,2542.9,0.39314]
[1724929049990,0.39313,2543.0,2542.8,5.75155168]
[1724929050191,4.56789208,2543.0,2542.8,5.75155168]
[1724929050502,4.94099208,2543.0,2542.9,0.39315]
[1724929051001,0.39315,2542.9,2542.8,0.73060168]
[1724929051196,8.87380208,2543.0,2542.8,0.73060168]
[1724929051397,4.37260048,2542.9,2542.8,0.73060168]
[1724929051806,8.30540048,2542.9,2542.8,0.73060168]
[1724929052503,8.69855048,2542.9,2542.8,0.73060168]
[1724929054301,4.76575048,2542.9,2542.8,0.73060168]
[1724929058103,8.69855048,2542.9,2542.8,0.73060168]
[1724929058315,9.68143048,2542.9,2542.8,0.00590168]
[1724929058509,9.68143048,2542.9,2542.3,5.75994]
[1724929058510,0.39322,2542.5,2542.3,5.75994]
[1724929058813,0.98297,2542.7,2542.3,5.75994]
[1724929059012,0.39322,2542.5,2542.3,5.75994]
[1724929059209,0.39323,2542.4,2542.3,5.75994]
[1724929059609,0.39322,2542.5,2542.3,9.69354]
[1724929059912,0.39322,2542.5,2542.3,5.75994]
[1724929060110,0.39323,2542.4,2542.3,0.366]
[1724929060308,4.53379668,2542.4,2542.3,0.366]
[1724929061719,0.39324,2542.3,2542.2,0.3562]
[1724929062118,4.93052807,2542.3,2542.2,0.3562]
[1724929063119,4.93052807,2542.3,2542.2,0.7246]
[1724929064521,4.53728807,2542.3,2542.2,1.11786]
[1724929064705,4.93052807,2542.3,2542.2,0.7246]
[1724929064911,0.39324,2542.3,2542.2,0.7246]
[1724929065111,4.58193563,2542.3,2542.2,0.7246]
[1724929065318,4.18869563,2542.3,2542.1,0.00590168]
[1724929065618,0.39325,2542.3,2542.1,1.81916168]
[1724929065921,0.39325,2542.3,2542.2,0.3531]
[1724929066220,4.30230316,2542.3,2542.2,0.74635]
[1724929066721,0.39323,2542.4,2542.2,0.74635]
[1724929066908,0.39323,2542.4,2542.3,0.3838]
[1724929067310,4.948297,2542.4,2542.3,0.3838]
[1724929070125,4.555067,2542.4,2542.3,2.57924]
[1724929070423,3.21370168,2542.6,2542.5,0.39321]
[1724929070610,3.21370168,2542.6,2542.5,1.81321]
[1724929070806,7.39859262,2542.6,2542.5,1.81321]
[1724929071007,4.19079262,2542.6,2542.5,1.81321]
[1724929074816,0.00590168,2542.6,2542.5,5.74601]
[1724929079923,0.00590168,2542.6,2542.4,0.39322]
[1724929080226,0.39322,2542.5,2542.4,0.39323]
[1724929080422,4.98047573,2542.5,2542.3,2.57923]
[1724929080721,4.98047573,2542.5,2542.3,2.19703]
[1724929080926,0.39323,2542.4,2542.3,2.19703]
[1724929081223,4.20261843,2542.4,2542.3,2.19703]
[1724929082728,4.59584843,2542.4,2542.3,2.19703]
[1724929083223,4.59584843,2542.4,2542.3,0.3838]
[1724929086021,4.59584843,2542.4,2542.3,0.77704]
[1724929091225,4.59584843,2542.4,2542.3,0.3838]
[1724929095035,0.39324,2542.3,2542.2,0.3531]
[1724929095229,0.39326,2542.2,2542.1,0.75227168]
[1724929095425,0.3879,2542.2,2542.1,0.75227168]
[1724929095628,0.3879,2542.2,2542.1,4.68587168]
[1724929096249,4.20261843,2542.4,2542.3,0.39324]
[1724929096534,0.00590168,2542.6,2542.5,1.37624]
[1724929096735,0.00590168,2542.6,2542.5,6.72904]
[1724929097131,0.00590168,2542.6,2542.5,6.12621]
[1724929097934,0.00590168,2542.6,2542.5,9.33401]
[1724929101442,0.00590168,2542.6,2542.5,12.57901]
[1724929101738,0.00590168,2542.6,2542.5,19.56204]
[1724929101926,0.39312,2543.2,2542.6,0.39319]
[1724929102126,0.39312,2543.2,2543.1,0.39312]
[1724929102332,4.25069361,2543.2,2543.1,0.39312]
[1724929102637,4.25069361,2543.2,2543.1,1.13672]
[1724929102935,4.64379361,2543.2,2543.1,1.13672]
[1724929103243,4.25069361,2543.2,2543.1,1.13672]
[1724929106333,3.2078,2543.3,2543.2,0.3931]
[1724929106538,3.2078,2543.3,2543.2,1.8131]
[1724929106738,3.2078,2543.3,2543.2,42.6131]
[1724929106940,3.2078,2543.3,2543.2,41.1931]
[1724929107244,3.2078,2543.3,2543.2,1.8131]
[1724929107539,3.2078,2543.3,2543.2,42.6131]
[1724929107737,3.2078,2543.3,2543.2,1.8131]
[1724929108639,0.39898168,2543.4,2543.3,0.39309]
[1724929109035,4.6879193,2543.4,2543.3,0.39309]
[1724929109237,4.2948393,2543.4,2543.3,0.39309]
[1724929110543,4.6879093,2543.4,2543.3,0.39309]
[1724929112547,0.39309,2543.3,2543.2,1.81309]
[1724929112743,0.3728,2543.3,2543.2,1.81309]
[1724929115249,0.76589,2543.3,2543.2,1.81309]
[1724929115442,0.3728,2543.3,2543.2,1.81309]
[1724929116841,4.2948393,2543.4,2543.3,0.39309]
[1724929117438,4.2948393,2543.4,2543.3,1.37581]
[1724929120949,0.00590168,2543.4,2543.3,5.30781]
[1724929122144,0.00590168,2543.4,2543.3,1.37581]
[1724929125243,0.00590168,2543.4,2543.3,0.39309]
[1724929125554,0.00590168,2543.4,2543.3,5.05409]
[1724929126746,0.00590168,2543.4,2543.3,3.63409]
[1724929127048,0.00590168,2543.4,2543.3,5.05409]
[1724929132160,0.75862,2543.8,2543.7,0.39302]
[1724929132559,4.89192665,2543.8,2543.7,0.39302]
[1724929132761,4.89192665,2543.8,2543.7,0.75242]
[1724929134158,8.82312665,2543.8,2543.7,0.75242]
[1724929134955,8.82312665,2543.8,2543.7,0.39302]
[1724929135157,8.43010665,2543.8,2543.5,0.00590168]
[1724929135358,0.39304,2543.6,2543.5,0.00590168]
[1724929135655,4.87997831,2543.6,2543.5,0.00590168]
[1724929135957,5.62507831,2543.6,2543.5,0.00590168]
[1724929136963,5.62507831,2543.6,2543.5,0.39896168]
[1724929137364,5.62507831,2543.6,2543.5,0.00590168]
[1724929138254,5.62507831,2543.6,2543.5,0.39896168]
[1724929140760,5.62507831,2543.6,2543.5,0.00590168]
[1724929141157,4.48693831,2543.6,2543.5,1.81896168]
[1724929142666,4.48693831,2543.6,2543.5,2.17386168]
[1724929143065,0.75862,2543.8,2543.7,0.39302]
[1724929143460,5.00380287,2543.8,2543.7,0.39302]
[1724929144863,5.00380287,2543.8,2543.7,0.76692]
[1724929145067,3.2078,2543.9,2543.8,0.39301]
[1724929145264,3.5892,2543.9,2543.7,0.3739]
[1724929145561,0.39302,2543.7,2543.6,2.17213]
[1724929145766,0.39302,2543.7,2543.6,0.75213]
[1724929145960,0.39302,2543.8,2543.7,0.39301]
[1724929146360,5.09283976,2543.8,2543.7,0.39301]
[1724929149973,0.39302,2543.7,2543.6,0.75213]
[1724929150272,4.49347501,2543.7,2543.6,0.75213]
[1724929150473,4.49347501,2543.7,2543.6,0.39303]
[1724929151273,0.39304,2543.6,2543.5,1.42590168]
[1724929153075,0.39304,2543.6,2543.5,1.81896168]
[1724929153572,1.37565,2543.6,2543.5,0.00590168]
[1724929153768,5.55280117,2543.6,2543.5,0.00590168]
[1724929153976,4.57019117,2543.6,2543.5,0.00590168]
[1724929158478,5.55280117,2543.6,2543.5,0.00590168]
[1724929163474,4.57019117,2543.6,2543.5,0.00590168]
[1724929163681,4.57019117,2543.6,2543.5,1.42590168]
[1724929165070,4.57019117,2543.6,2543.5,1.81896168]
[1724929168485,4.57019117,2543.6,2543.5,0.00590168]
[1724929168881,5.55280117,2543.6,2543.5,0.00590168]
[1724929169087,12.69180117,2543.6,2543.5,0.00590168]
[1724929169581,13.06150117,2543.6,2543.5,0.00590168]
[1724929169787,19.65107117,2543.6,2543.1,1.02823759]
[1724929169977,4.6278,2543.3,2542.9,0.3584]
[1724929170173,0.39313,2543.0,2542.9,0.3584]
[1724929170378,0.39313,2543.1,2542.9,2.17155]
[1724929170578,4.23759234,2543.0,2542.9,2.17155]
[1724929171783,4.63072234,2543.0,2542.9,1.7784]
[1724929172088,0.39313,2543.0,2542.9,1.7784]
[1724929172476,4.50854035,2543.0,2542.9,1.7784]
[1724929173285,4.50854035,2543.0,2542.9,0.3584]
[1724929181091,4.50854035,2543.0,2542.9,0.75155]
[1724929183598,4.50854035,2543.0,2542.9,0.3584]
[1724929188093,4.50854035,2543.0,2542.8,2.52585]
[1724929188094,0.39315,2542.9,2542.8,0.3574]
[1724929188296,0.3777,2542.9,2542.7,0.39908168]
[1724929188496,5.41785006,2542.9,2542.7,0.39908168]
[1724929188698,0.39316,2542.8,2542.7,0.00590168]
[1724929190197,5.80716836,2542.8,2542.7,0.00590168]
[1724929194309,4.43108836,2542.8,2542.7,0.39908168]
[1724929194507,4.43108836,2542.8,2542.7,5.75188168]
[1724929194800,3.2078,2543.0,2542.9,0.39315]
[1724929194801,3.60094,2543.0,2542.9,0.39315]
[1724929195014,0.39315,2542.9,2542.8,0.75156]
[1724929195202,4.82646365,2542.9,2542.8,0.75156]
[1724929195509,7.64111365,2543.0,2542.9,0.39315]
[1724929195510,3.60094,2543.0,2542.9,0.39315]
[1724929195703,3.2078,2543.0,2542.9,0.39315]
[1724929195898,7.64111365,2543.0,2542.9,1.15975]
[1724929196297,7.64111365,2543.0,2542.7,0.39907168]
[1724929196498,0.39316,2542.8,2542.7,0.75747168]
[1724929196698,0.76956,2542.9,2542.7,0.75747168]
[1724929197096,4.44217008,2542.8,2542.7,0.75747168]
[1724929199002,4.83533008,2542.8,2542.7,0.75747168]
[1724929199212,4.44217008,2542.8,2542.7,0.75747168]
[1724929200304,7.23825008,2542.8,2542.7,0.00590168]
[1724929200506,0.39323,2542.4,2542.3,4.5728]
[1724929200708,11.50859008,2542.8,2541.8,8.6218392]
[1724929200709,2.40303,2542.5,2541.8,8.6218392]
[1724929200908,2.40303,2542.5,2542.0,1.13119]
[1724929200909,0.39325,2542.3,2542.0,1.13119]
[1724929201103,0.39325,2542.3,2542.0,0.7379]
[1724929201305,4.55868497,2542.2,2542.0,1.13118]
[1724929201503,4.55868497,2542.2,2542.1,1.81327]
[1724929201707,4.55868497,2542.3,2542.2,0.39326]
[1724929201906,0.00590168,2542.4,2542.3,0.39324]
[1724929202709,0.39913168,2542.4,2542.1,1.81326]
[1724929202905,0.362,2542.3,2542.1,1.81326]
[1724929203415,4.1847512,2542.2,2542.1,1.81326]
[1724929204611,3.5983512,2542.2,2542.0,0.7379]
[1724929204816,0.00590168,2542.4,2542.3,0.39324]
[1724929205113,0.3541,2543.1,2542.6,0.39318]
[1724929205309,0.74722,2543.1,2543.0,1.42]
[1724929205615,0.39315,2542.9,2542.8,1.42]
[1724929205811,0.39314,2543.0,2542.8,1.42]
[1724929206118,4.30255427,2542.9,2542.7,41.19318]
[1724929206808,4.30255427,2542.9,2542.7,40.8]
[1724929207011,4.30255427,2542.9,2542.7,41.19318]
[1724929207607,4.69570427,2542.9,2542.7,40.8]
[1724929207812,5.04860427,2542.9,2542.7,40.8]
[1724929208012,0.3529,2542.9,2542.7,41.19318]
[1724929208213,4.2092706,2542.8,2542.7,41.56528]
[1724929208610,4.2092706,2542.8,2542.7,41.1721]
[1724929208810,4.6024306,2542.8,2542.7,0.3721]
[1724929209018,0.39318,2542.7,2542.3,6.6078]
[1724929209218,0.3796,2542.7,2542.4,0.3721]
[1724929209416,4.37515065,2542.6,2542.4,0.3721]
[1724929209719,8.30795065,2542.6,2542.0,3.2078]
[1724929210020,0.39324,2542.3,2542.0,44.40108]
[1724929210215,0.39324,2542.4,2542.1,0.39327]
[1724929210416,4.21568162,2542.2,2542.1,0.39327]
[1724929210720,4.21568162,2542.3,2542.1,0.39327]
[1724929213124,4.21568162,2542.3,2542.0,3.2078]
[1724929213322,0.75917,2542.2,2542.0,3.2078]
[1724929213718,5.23054339,2542.1,2542.0,3.2078]
[1724929214517,4.83727339,2542.1,2542.0,3.2078]
[1724929215019,5.23054339,2542.1,2542.0,3.2078]
[1724929215918,4.83727339,2542.1,2542.0,3.2078]
[1724929216815,4.83727339,2542.1,2541.9,0.7723]
[1724929217126,4.83727339,2542.1,2541.9,3.9801]
[1724929217326,4.44847339,2542.1,2541.9,3.9801]
[1724929218025,4.44847339,2542.1,2541.9,4.3483]
[1724929219523,4.84174339,2542.1,2541.9,3.5868]
[1724929219818,4.84174339,2542.1,2541.9,3.9801]
[1724929221027,4.84174339,2542.1,2541.9,0.7723]
[1724929221322,4.44847339,2542.1,2541.9,3.5868]
[1724929221718,4.44847339,2542.1,2542.0,0.39329]
[1724929222828,4.44847339,2542.1,2541.9,3.5868]
[1724929222829,4.84174339,2542.1,2541.9,3.98009]
[1724929223629,4.44847339,2542.1,2542.0,0.39329]
[1724929224328,4.44847339,2542.1,2542.0,0.74539]
[1724929224926,4.44847339,2542.1,2542.0,0.39329]
[1724929225733,4.84174339,2542.1,2542.0,0.39329]
[1724929226030,4.44847339,2542.1,2542.0,0.39329]
[1724929228429,4.84174339,2542.1,2542.0,0.39329]
[1724929229223,4.44847339,2542.1,2542.0,0.39329]
[1724929232433,4.44847339,2542.1,2542.0,4.32689]
[1724929232633,0.75916,2542.2,2542.0,0.39329]
[1724929233138,4.10887096,2542.1,2542.0,0.39329]
[1724929237137,0.39323,2542.4,2542.0,6.33682]
[1724929237337,3.60102,2542.5,2542.3,0.39323]
[1724929237631,3.60101,2542.5,2542.4,0.357]
[1724929238022,7.9131309,2542.5,2542.4,0.357]
[1724929239733,7.9131309,2542.5,2542.3,0.39323]
[1724929239928,0.77403,2542.4,2542.3,0.39323]
[1724929240131,0.77403,2542.4,2542.2,0.39325]
[1724929240434,0.3599,2542.3,2542.2,0.39325]
[1724929240828,4.60507081,2542.3,2542.2,0.39325]
[1724929241030,4.99831081,2542.3,2542.2,0.39325]
[1724929241231,4.60507081,2542.3,2542.2,0.39325]
[1724929247034,8.53867081,2542.3,2542.0,0.39328]
[1724929247334,8.53867081,2542.3,2541.8,0.00590168]
[1724929247335,0.3933,2541.9,2541.8,0.00590168]
[1724929247531,1.8133,2541.9,2541.8,0.00590168]
[1724929247738,9.93081821,2541.9,2541.8,0.00590168]
[1724929248046,10.29661821,2541.9,2541.8,0.00590168]
[1724929249340,6.36221821,2541.9,2541.8,0.00590168]
[1724929250541,13.50441821,2541.9,2541.8,0.00590168]
[1724929250937,19.11111821,2541.9,2541.3,3.2078]
[1724929251142,0.39338,2541.5,2541.3,3.2078]
[1724929251331,2.53418,2541.4,2541.3,3.2078]
[1724929251533,0.3934,2541.3,2540.9,0.39345]
[1724929251736,6.65886842,2541.4,2541.0,0.39344]
[1724929251737,2.53419,2541.4,2541.0,0.39344]
[1724929251939,4.18311821,2541.2,2541.0,0.39344]
[1724929252140,4.51806842,2541.3,2541.0,0.39344]
[1724929252338,2.53419,2541.4,2541.0,0.39344]
[1724929252842,4.66360122,2541.3,2541.0,0.39344]
[1724929253150,6.08360122,2541.3,2540.9,0.39935168]
[1724929253943,6.08360122,2541.3,2541.0,0.39344]
[1724929254253,0.39342,2541.2,2540.9,0.39936168]
[1724929254449,7.47800122,2541.3,2540.9,0.00590168]
[1724929254643,4.63247215,2541.1,2540.9,0.00590168]
[1724929254836,0.39344,2541.0,2540.9,0.00590168]
[1724929255037,1.16014,2541.0,2540.9,0.00590168]
[1724929255244,5.39917215,2541.0,2540.9,0.00590168]
[1724929256644,9.33437215,2541.0,2540.9,0.00590168]
[1724929256847,5.39917215,2541.0,2540.9,0.00590168]
[1724929259350,9.33437215,2541.0,2540.9,0.00590168]
[1724929260852,5.00573215,2541.0,2540.9,0.00590168]
[1724929261046,4.23903215,2541.0,2540.9,0.39936168]
[1724929261245,6.6078,2541.3,2541.2,0.39341]
[1724929261246,3.2078,2541.3,2541.2,0.39341]
[1724929261644,0.00590168,2541.5,2541.4,0.39338]
[1724929261843,0.00590168,2541.5,2541.4,7.72778]
[1724929262356,0.00590168,2541.5,2541.4,48.52778]
[1724929263841,0.00590168,2541.5,2541.4,45.12778]
[1724929264051,0.00590168,2541.5,2541.4,45.48198]
[1724929264243,0.00590168,2541.5,2541.4,41.54758]
[1724929267151,0.00590168,2541.5,2541.4,45.48198]
[1724929267342,0.00590168,2541.5,2541.4,41.54758]
[1724929267948,0.00590168,2541.5,2541.4,48.88198]
[1724929268651,0.00590168,2541.5,2541.4,49.86544]
[1724929268850,0.00590168,2541.5,2541.4,55.86544]
[1724929269756,0.39323,2542.4,2541.8,0.39332]
[1724929269941,0.75054,2542.3,2541.9,3.9427]
[1724929270145,5.04229143,2542.3,2542.2,0.39326]
[1724929270345,0.3573,2542.3,2542.2,0.39326]
[1724929270546,0.3594,2542.5,2542.0,0.98321]
[1724929270749,0.00590168,2542.5,2542.4,0.39322]